bitfinex/quotes_BTCUSD_20251120
["timestamp","ask_amount","ask_price","bid_price","bid_amount"]
[1763659620034,0.004,87172.0,87151.0,0.04095654]
[1763659620244,0.03214,87171.0,87148.0,0.36395654]
[1763659620450,0.03214,87171.0,87143.0,0.06145572]
[1763659620451,3.34382827,87170.0,87143.0,0.00041988]
[1763659620653,0.01,87165.0,87143.0,0.00041988]
[1763659620863,0.323,87168.0,87143.0,0.00041988]
[1763659620864,0.10901371,87161.0,87143.0,0.00041988]
[1763659621157,3.0,87144.0,87115.0,0.04095654]
[1763659621375,3.0,87144.0,87086.0,0.02267894]
[1763659621376,0.0176,87123.0,87117.0,0.00327902]
[1763659621571,0.0176,87135.0,87117.0,0.00327902]
[1763659621781,0.01800446,87157.0,87117.0,0.00327902]
[1763659621782,0.004,87125.0,87118.0,0.10901371]
[1763659622000,0.001,87171.0,87133.0,0.05210249]
[1763659622227,0.001,87171.0,87150.0,0.63319543]
[1763659622443,0.001,87171.0,87161.0,0.37510249]
[1763659622444,0.004,87170.0,87161.0,0.37510249]
[1763659622667,0.004,87170.0,87163.0,0.37510249]
[1763659623296,0.004,87170.0,87153.0,0.06103584]
[1763659623297,0.03559,87169.0,87147.0,0.04095654]
[1763659623543,0.03559,87169.0,87147.0,0.00012577]
[1763659623765,0.03559,87169.0,87161.0,0.001]
[1763659624003,0.004,87170.0,87161.0,0.001]
[1763659624192,0.004,87170.0,87162.0,0.05210249]
[1763659624840,0.01728,87200.0,87162.0,0.05210249]
[1763659625060,0.05516,87230.0,87162.0,0.05210249]
[1763659625061,0.004,87207.0,87191.0,0.37510249]
[1763659625661,0.004,87207.0,87191.0,0.323]
[1763659626023,0.004,87207.0,87180.0,0.63319543]
[1763659626024,0.004,87207.0,87192.0,0.05210249]
[1763659626235,0.0044198,87207.0,87193.0,0.37510249]
[1763659626442,0.0044198,87207.0,87192.0,0.10901371]
[1763659626443,0.0044198,87207.0,87195.0,0.37510249]
[1763659626609,0.0004198,87207.0,87206.0,0.4841162]
[1763659626821,0.0014198,87207.0,87206.0,0.4841162]
[1763659627028,0.0014198,87207.0,87205.0,0.02267894]
[1763659627236,0.0014198,87207.0,87188.0,0.05210249]
[1763659627457,0.0014198,87207.0,87191.0,0.37510249]
[1763659627964,0.004,87206.0,87191.0,0.37510249]
[1763659628174,0.004,87206.0,87186.0,0.02267894]
[1763659628175,0.00012581,87206.0,87197.0,0.37510249]
[1763659628378,0.00012581,87206.0,87198.0,0.05210249]
[1763659628586,0.00012581,87206.0,87202.0,0.05210249]
[1763659628807,0.004,87240.0,87221.0,0.37510249]
[1763659629017,0.00412577,87240.0,87221.0,0.34567894]
[1763659629370,0.00412577,87240.0,87221.0,0.02267894]
[1763659629371,0.323,87238.0,87221.0,0.02267894]
[1763659629572,0.00412577,87240.0,87211.0,0.05210249]
[1763659629738,0.00412577,87240.0,87221.0,0.37510249]
[1763659630142,0.00412577,87240.0,87221.0,0.39778143]
[1763659630343,0.00412577,87240.0,87232.0,0.05210249]
[1763659630492,0.00412577,87240.0,87232.0,0.07478143]
[1763659630699,0.00412577,87240.0,87232.0,0.02267894]
[1763659630899,0.03971577,87240.0,87232.0,0.02267894]
[1763659631363,0.03971577,87240.0,87215.0,0.05210249]
[1763659631554,0.10901371,87237.0,87214.0,0.02267894]
[1763659631810,0.10901371,87223.0,87185.0,0.02267894]
[1763659631990,0.01728,87193.0,87164.0,0.04100076]
[1763659632198,0.01728,87193.0,87140.0,0.01999998]
[1763659632199,0.004,87192.0,87150.0,0.63319543]
[1763659632371,0.004,87192.0,87153.0,0.08058888]
[1763659632725,3.0,87191.0,87150.0,0.63319543]
[1763659632853,0.03959,87192.0,87161.0,0.323]
[1763659633055,0.03959,87192.0,87160.0,0.63319543]
[1763659633056,0.004,87192.0,87171.0,0.323]
[1763659633264,0.004,87192.0,87181.0,0.323]
[1763659633467,0.004,87192.0,87174.0,0.05210249]
[1763659633694,0.004,87192.0,87172.0,0.10652091]
[1763659633695,0.004,87192.0,87183.0,0.37510249]
[1763659634274,0.004,87192.0,87183.0,0.323]
[1763659634482,0.004,87192.0,87186.0,0.05210249]
[1763659634692,0.004,87192.0,87184.0,0.1227777]
[1763659634693,0.004,87192.0,87189.0,0.05210249]
[1763659634933,0.004,87192.0,87164.0,0.04100076]
[1763659635136,0.004,87192.0,87172.0,0.10901371]
[1763659635354,0.03559,87230.0,87187.0,0.323]
[1763659635575,0.004,87229.0,87191.0,0.37510249]
[1763659635777,0.10901371,87223.0,87191.0,0.0004198]
[1763659635998,0.04983975,87218.0,87191.0,0.0004198]
[1763659636237,0.35859,87222.0,87191.0,0.0004198]
[1763659636647,0.03559,87221.0,87191.0,0.0004198]
[1763659637290,0.01799107,87214.0,87191.0,0.0004198]
[1763659637826,0.05358107,87214.0,87191.0,0.0004198]
[1763659638191,0.05358107,87214.0,87191.0,0.01418268]
[1763659638594,0.03559,87227.0,87194.0,0.37510249]
[1763659638801,0.03559,87227.0,87194.0,0.48687563]
[1763659639005,0.01799032,87224.0,87194.0,0.11177314]
[1763659639207,0.03559,87227.0,87194.0,0.11177314]
[1763659639409,0.22922925,87249.0,87191.0,0.3234198]
[1763659639410,0.004,87226.0,87196.0,0.05210249]
[1763659639612,0.004,87226.0,87192.0,0.10901371]
[1763659639613,0.004,87226.0,87212.0,0.05210249]
[1763659640003,0.00025104,87218.0,87212.0,0.05210249]
[1763659640274,0.00025104,87218.0,87214.0,0.37510249]
[1763659640480,0.004,87226.0,87214.0,0.37510249]
[1763659640688,0.004,87226.0,87217.0,0.05210249]
[1763659640915,0.004,87226.0,87215.0,0.28141986]
[1763659640916,0.004,87226.0,87225.0,0.4841162]
[1763659641132,0.05526,87286.0,87225.0,0.4841162]
[1763659641133,0.01728,87269.0,87226.0,0.37510249]
[1763659641348,0.004,87259.0,87241.0,0.37510249]
[1763659641554,0.004,87259.0,87241.0,0.39491143]
[1763659642163,0.00412581,87259.0,87241.0,0.39491143]
[1763659642581,0.00412581,87259.0,87243.0,0.37510249]
[1763659642792,0.00412581,87259.0,87245.0,0.37510249]
[1763659643219,0.00412581,87259.0,87244.0,0.10071574]
[1763659643220,0.00012581,87259.0,87249.0,0.05210249]
[1763659644311,0.00012581,87259.0,87242.0,0.05210249]
[1763659645190,0.00012581,87259.0,87249.0,0.001]
[1763659645851,0.00012581,87259.0,87222.0,0.01980894]
[1763659645852,3.03559,87258.0,87222.0,0.01980894]
[1763659646040,3.0,87256.0,87206.0,0.10901371]
[1763659646212,3.0,87256.0,87210.0,0.63319543]
[1763659646533,0.000251,87226.0,87207.0,0.01980894]
[1763659646716,0.000251,87226.0,87206.0,0.10901371]
[1763659646717,0.004251,87226.0,87206.0,0.10901371]
[1763659646922,0.004251,87226.0,87222.0,0.323]
[1763659647216,0.004251,87226.0,87223.0,0.05210249]
[1763659647421,0.004251,87226.0,87225.0,0.4841162]
[1763659647638,0.004251,87226.0,87225.0,0.37510249]
[1763659647844,0.000251,87226.0,87225.0,0.37510249]
[1763659648095,0.000251,87226.0,87225.0,0.41459363]
[1763659648481,0.004,87250.0,87242.0,0.05210249]
[1763659648693,0.00412579,87250.0,87249.0,0.4841162]
[1763659648892,0.00012579,87250.0,87249.0,0.4841162]
[1763659649238,0.00012579,87250.0,87249.0,0.37510249]
[1763659649437,0.00012579,87250.0,87249.0,0.323]
[1763659649841,0.00012579,87250.0,87249.0,0.37510249]
[1763659650455,0.00012579,87250.0,87249.0,0.323]
[1763659650654,0.00012579,87250.0,87242.0,0.001]
[1763659650859,0.03413,87249.0,87215.0,0.01980894]
[1763659651064,3.0,87248.0,87197.0,0.04100076]
[1763659651358,3.0,87248.0,87192.0,0.06103584]
[1763659651359,3.323,87241.0,87177.0,0.01980894]
[1763659651544,3.0,87226.0,87179.0,0.04100076]
[1763659651872,0.323,87239.0,87188.0,0.01376336]
[1763659651873,0.03413,87225.0,87188.0,0.01376336]
[1763659652083,0.03413,87225.0,87190.0,0.63319543]
[1763659652234,0.03413,87225.0,87161.0,0.08770025]
[1763659652235,0.03413,87225.0,87184.0,0.04100076]
[1763659652445,0.03413,87225.0,87181.0,0.10901371]
[1763659652446,0.10901371,87223.0,87181.0,0.10901371]
[1763659652601,0.04983975,87221.0,87177.0,0.0608097]
[1763659652804,0.03233,87222.0,87181.0,0.10901371]
[1763659653008,0.10901371,87223.0,87180.0,0.63319543]
[1763659653009,0.03233,87221.0,87180.0,0.63319543]
[1763659653208,0.03233,87221.0,87144.0,0.22950476]
[1763659653209,0.04983975,87211.0,87181.0,0.01376446]
[1763659653577,0.01413437,87220.0,87168.0,0.01980894]
[1763659653578,0.10901371,87206.0,87168.0,0.01980894]
[1763659653861,0.004,87210.0,87181.0,0.0004198]
[1763659653862,0.05253,87210.0,87181.0,0.0004198]
[1763659654096,0.05253,87210.0,87185.0,0.10901371]
[1763659654300,0.03233,87209.0,87181.0,0.0004198]
[1763659655318,3.0,87206.0,87181.0,0.0004198]
[1763659655439,0.04983975,87203.0,87181.0,0.0004198]
[1763659655644,0.03233,87205.0,87181.0,0.0004198]
[1763659655847,0.01615437,87205.0,87181.0,0.0004198]
[1763659656053,0.03233,87204.0,87181.0,0.0004198]
[1763659656289,0.04983975,87199.0,87181.0,0.0004198]
[1763659656494,0.03233,87204.0,87150.0,0.0608097]
[1763659656495,3.0,87192.0,87150.0,0.0608097]
[1763659656795,3.0,87192.0,87141.0,0.00315201]
[1763659656796,0.0162,87162.0,87141.0,0.00315201]
[1763659657004,0.004,87161.0,87141.0,0.00315201]
[1763659657203,0.03633,87161.0,87141.0,0.00315201]
[1763659657432,0.01800202,87157.0,87141.0,0.00315201]
[1763659657671,0.01800202,87157.0,87107.0,0.01980894]
[1763659657672,0.04983975,87147.0,87107.0,0.01980894]
[1763659657867,0.0070532,87156.0,87110.0,0.63319543]
[1763659657868,0.03233,87156.0,87110.0,0.63319543]
[1763659658089,0.03233,87156.0,87111.0,0.01377552]
[1763659658298,0.08922295,87156.0,87112.0,0.07759194]
[1763659658503,0.08922295,87156.0,87113.0,0.01269674]
[1763659658712,0.03233,87155.0,87113.0,0.01269674]
[1763659659177,0.0180051,87145.0,87112.0,0.07759194]
[1763659659413,0.0180051,87145.0,87113.0,0.37510249]
[1763659659607,0.0503351,87145.0,87113.0,0.43793394]
[1763659659817,0.0503351,87145.0,87094.0,0.04100076]
[1763659659818,0.11476708,87138.0,87093.0,0.01980894]
[1763659660056,0.004,87137.0,87093.0,0.01980894]
[1763659660264,0.08616975,87137.0,87094.0,0.01377821]
[1763659660469,0.08616975,87137.0,87090.0,0.63359543]
[1763659660470,3.0,87136.0,87090.0,0.0004]
[1763659660629,0.0162,87108.0,87090.0,0.0004]
[1763659660830,0.004,87107.0,87090.0,0.00082048]
[1763659661106,0.03633,87107.0,87090.0,0.00082048]
[1763659661260,0.03633,87107.0,87090.0,4.8e-07]
[1763659661261,0.04983975,87106.0,87090.0,4.8e-07]
[1763659661463,0.03633,87107.0,87090.0,4.8e-07]
[1763659661464,0.01023698,87105.0,87090.0,4.8e-07]
[1763659661690,0.323,87103.0,87090.0,4.8e-07]
[1763659661930,3.11476708,87091.0,87090.0,4.8e-07]
[1763659662117,3.48760683,87091.0,87090.0,4.8e-07]
[1763659662290,3.14709708,87091.0,87090.0,4.8e-07]
[1763659662705,0.14709708,87091.0,87090.0,4.8e-07]
[1763659663572,0.14809708,87091.0,87090.0,4.8e-07]
[1763659663977,0.03233,87091.0,87090.0,4.8e-07]
[1763659664334,0.03333,87091.0,87090.0,4.8e-07]
[1763659664870,0.001,87091.0,87090.0,4.8e-07]
[1763659665495,0.03233,87105.0,87090.0,4.8e-07]
[1763659665715,0.04905971,87105.0,87090.0,4.8e-07]
[1763659665901,0.03233,87105.0,87104.0,0.00116315]
[1763659666403,0.1207,87104.0,87090.0,4.8e-07]
[1763659666628,0.004,87107.0,87090.0,4.8e-07]
[1763659666629,0.03233,87103.0,87090.0,4.8e-07]
[1763659667253,0.001,87105.0,87090.0,4.8e-07]
[1763659667450,0.004,87107.0,87090.0,4.8e-07]
[1763659667680,0.03233,87106.0,87090.0,4.8e-07]
[1763659667884,0.004,87107.0,87090.0,0.01980942]
[1763659668234,0.03233,87106.0,87090.0,0.01980942]
[1763659668418,0.004,87107.0,87090.0,4.8e-07]
[1763659668782,0.001,87104.0,87090.0,4.8e-07]
[1763659669103,0.03233,87103.0,87090.0,4.8e-07]
[1763659669312,0.001,87104.0,87090.0,4.8e-07]
[1763659669507,0.004,87107.0,87090.0,4.8e-07]
[1763659669739,0.11476708,87092.0,87090.0,4.8e-07]
[1763659669939,0.03233,87091.0,87090.0,4.8e-07]
[1763659670646,0.03633,87091.0,87090.0,4.8e-07]
[1763659670858,0.05434336,87091.0,87090.0,4.8e-07]
[1763659671391,0.004,87091.0,87090.0,4.8e-07]
[1763659671823,0.03633,87091.0,87090.0,4.8e-07]
[1763659672200,0.03633,87091.0,87090.0,0.00044075]
[1763659672406,0.05434263,87091.0,87052.0,0.323]
[1763659672613,0.05434263,87091.0,87050.0,0.0004]
[1763659672614,0.11476708,87090.0,87053.0,0.12552957]
[1763659672813,0.03233,87090.0,87055.0,0.05210249]
[1763659673025,0.03233,87090.0,87057.0,0.05210249]
[1763659673227,0.00441877,87091.0,87082.0,0.00025163]
[1763659673953,0.004,87090.0,87082.0,0.00025163]
[1763659675020,0.004,87090.0,87070.0,0.0473762]
[1763659675221,0.004,87090.0,87071.0,0.11476708]
[1763659676139,0.004,87089.0,87072.0,0.04331]
[1763659676342,0.004,87089.0,87072.0,0.04372877]
[1763659676511,0.004,87089.0,87073.0,0.0177886]
[1763659676736,0.0162,87112.0,87090.0,0.019392]
[1763659676942,0.1273,87111.0,87090.0,0.019392]
[1763659677793,0.004,87111.0,87090.0,0.019392]
[1763659679001,0.005,87111.0,87090.0,0.019392]
[1763659679308,0.005,87111.0,87092.0,0.323]
[1763659679560,0.004,87111.0,87093.0,0.04882091]
[1763659679767,0.004,87111.0,87093.0,0.06862985]
[1763659679910,0.005,87111.0,87094.0,0.40615249]
[1763659680109,0.005,87111.0,87110.0,0.01226]
[1763659680308,0.03733,87111.0,87094.0,0.323]
[1763659680891,0.03733,87111.0,87090.0,0.019392]
[1763659681062,0.03633,87111.0,87090.0,0.019392]
[1763659681260,0.03633,87111.0,87090.0,0.01951777]
[1763659681261,0.1233,87110.0,87090.0,0.01951777]
[1763659681509,0.139263,87110.0,87090.0,0.01951777]
[1763659681720,0.14709708,87109.0,87090.0,0.01951777]
[1763659682186,0.03233,87108.0,87090.0,0.01951777]
[1763659682891,0.004,87107.0,87093.0,0.05210249]
[1763659683091,0.004,87107.0,87090.0,0.01951777]
[1763659683298,0.004,87107.0,87092.0,0.323]
[1763659683508,0.004,87107.0,87090.0,0.01951777]
[1763659683509,0.01542,87091.0,87090.0,0.01951777]
[1763659684162,0.03132,87106.0,87090.0,0.01951777]
[1763659684163,0.01542,87100.0,87090.0,0.01951777]
[1763659684664,0.03132,87106.0,87090.0,0.01951777]
[1763659685077,0.04600609,87105.0,87090.0,0.01951777]
[1763659685296,0.03132,87106.0,87090.0,0.01951777]
[1763659685513,0.05214526,87105.0,87090.0,0.01951777]
[1763659685700,0.004,87107.0,87090.0,0.01951777]
[1763659686554,0.001,87105.0,87090.0,0.01951777]
[1763659687919,0.004,87107.0,87090.0,0.01951777]
[1763659688398,0.03532,87107.0,87090.0,0.01951777]
[1763659688626,0.38779369,87106.0,87090.0,0.01951777]
[1763659688836,0.3669,87106.0,87090.0,0.01951777]
[1763659689471,0.17551885,87105.0,87090.0,0.01951777]
[1763659689683,0.02089885,87104.0,87090.0,0.01951777]
[1763659689900,0.1233,87105.0,87090.0,0.01951777]
[1763659690131,0.1233,87105.0,87091.0,0.42009118]
[1763659690349,0.1233,87105.0,87091.0,0.40631249]
[1763659690588,0.1233,87105.0,87090.0,0.01951777]
[1763659690589,0.1233,87105.0,87093.0,0.11313833]
[1763659690811,0.1233,87105.0,87100.0,0.37510249]
[1763659691029,0.1233,87105.0,87100.0,0.07191143]
[1763659691257,0.1233,87105.0,87102.0,0.05210249]
[1763659691468,0.15462,87153.0,87103.0,0.323]
[1763659691673,0.02485607,87141.0,87107.0,0.37510249]
[1763659691928,0.004,87141.0,87107.0,0.43613833]
[1763659692142,0.004,87141.0,87107.0,0.37510249]
[1763659692143,0.02085042,87140.0,87107.0,0.37510249]
[1763659692356,0.03126722,87139.0,87108.0,0.37510249]
[1763659692554,0.03126722,87138.0,87108.0,0.37510249]
[1763659692755,0.03126722,87137.0,87108.0,0.37510249]
[1763659692968,0.14608708,87140.0,87100.0,0.01980894]
[1763659692969,0.11476708,87125.0,87100.0,0.01980894]
[1763659693191,0.11476708,87125.0,87071.0,0.10172641]
[1763659693192,0.11476708,87108.0,87072.0,0.06103584]
[1763659693403,0.01542,87091.0,87053.0,0.06103584]
[1763659693635,0.03125439,87090.0,87053.0,0.00041877]
[1763659693843,0.03125439,87089.0,87054.0,0.01093912]
[1763659694061,0.03905383,87088.0,87053.0,0.00041877]
[1763659694266,0.11476708,87072.0,87053.0,0.00041877]
[1763659694469,0.02485042,87071.0,87053.0,0.00041877]
[1763659694674,0.02085042,87070.0,87053.0,0.00041877]
[1763659694885,0.03532,87071.0,87053.0,0.00041877]
[1763659694886,0.02085042,87069.0,87053.0,0.00041877]
[1763659695087,0.03532,87071.0,87053.0,0.00041877]
[1763659695283,0.004,87071.0,87053.0,0.00041877]
[1763659695498,0.004,87071.0,87053.0,0.01420347]
[1763659695697,0.03132,87085.0,87057.0,0.05210249]
[1763659695698,0.004,87070.0,87057.0,0.05210249]
[1763659695904,0.004,87070.0,87059.0,0.323]
[1763659696526,0.004,87070.0,87061.0,0.323]
[1763659696726,0.004,87070.0,87062.0,0.05210249]
[1763659697400,0.004,87070.0,87064.0,0.323]
[1763659697813,0.004,87070.0,87053.0,0.00041877]
[1763659698224,0.004,87070.0,87054.0,0.01568]
[1763659698438,0.004,87070.0,87053.0,0.00041877]
[1763659698665,0.004,87070.0,87055.0,0.323]
[1763659698867,0.004,87070.0,87056.0,0.09491463]
[1763659699076,0.004,87070.0,87069.0,0.37510249]
[1763659699287,0.004,87089.0,87070.0,0.05210249]
[1763659699538,0.004,87089.0,87088.0,0.01102]
[1763659700707,0.004,87089.0,87088.0,0.00012612]
[1763659701411,0.004,87089.0,87088.0,0.00112612]
[1763659701813,0.004,87089.0,87088.0,0.46076118]
[1763659702034,0.004,87089.0,87088.0,0.32412612]
[1763659703043,0.004,87089.0,87088.0,0.35533612]
[1763659703246,0.004,87089.0,87088.0,0.40743861]
[1763659703455,0.004,87089.0,87088.0,0.32412612]
[1763659703664,0.004,87089.0,87088.0,0.32312612]
[1763659703890,0.001,87105.0,87089.0,0.37510249]
[1763659704258,0.001,87105.0,87104.0,0.48986957]
[1763659704498,0.001,87105.0,87104.0,0.55223305]
[1763659704697,0.004,87120.0,87111.0,0.37510249]
[1763659704872,0.004,87120.0,87119.0,0.48986957]
[1763659705086,0.0180067,87144.0,87120.0,0.37510249]
[1763659705289,0.0180067,87144.0,87134.0,0.323]
[1763659705453,0.0180067,87144.0,87134.0,0.03115348]
[1763659705656,0.004,87146.0,87137.0,0.05210249]
[1763659705938,0.00315351,87167.0,87137.0,0.05210249]
[1763659705939,0.01800221,87164.0,87137.0,0.05210249]
[1763659706141,0.01800221,87164.0,87135.0,0.14597708]
[1763659706142,0.01812794,87164.0,87151.0,0.37510249]
[1763659706302,0.01812794,87164.0,87151.0,0.35415348]
[1763659707118,0.01812794,87164.0,87142.0,0.05210249]
[1763659707319,0.03132,87163.0,87141.0,0.03115348]
[1763659707867,0.03132,87163.0,87151.0,0.001]
[1763659708066,0.11476708,87162.0,87151.0,0.001]
[1763659708218,0.01542,87152.0,87151.0,0.001]
[1763659708422,0.01542,87152.0,87131.0,0.05210249]
[1763659708625,0.01812794,87164.0,87133.0,0.11476708]
[1763659708821,0.01812794,87164.0,87134.0,0.37510249]
[1763659709003,0.01812794,87164.0,87134.0,0.40631249]
[1763659709203,0.01508763,87164.0,87136.0,0.05210249]
[1763659709702,0.01508763,87164.0,87149.0,0.37510249]
[1763659709703,0.001,87163.0,87149.0,0.37510249]
[1763659709832,0.001,87163.0,87162.0,0.48986957]
[1763659710032,0.001,87163.0,87162.0,0.52102305]
[1763659710321,0.0002,87180.0,87163.0,0.37510249]
[1763659710440,0.0002,87180.0,87163.0,0.40637249]
[1763659710441,0.00061954,87180.0,87163.0,0.40637249]
[1763659710640,0.00061954,87180.0,87163.0,0.37510249]
[1763659710857,0.00061954,87180.0,87163.0,0.40637249]
[1763659711294,0.00061954,87180.0,87163.0,0.08337249]
[1763659711533,0.00061954,87180.0,87177.0,0.37510249]
[1763659711772,0.00061954,87180.0,87177.0,0.40625597]
[1763659711902,0.00061954,87180.0,87179.0,0.05210249]
[1763659712112,0.00061954,87180.0,87179.0,0.03127]
[1763659712918,0.00061954,87180.0,87178.0,0.05210249]
[1763659713610,0.00061954,87180.0,87150.0,0.6122442]
[1763659713611,0.03076954,87180.0,87168.0,0.03115348]
[1763659713769,0.03076954,87180.0,87135.0,0.05933392]
[1763659713770,0.03076954,87180.0,87158.0,0.03115348]
[1763659713978,0.03076954,87180.0,87177.0,0.001]
[1763659714178,0.00061954,87180.0,87177.0,0.001]
[1763659714377,0.00061954,87180.0,87158.0,0.03115348]
[1763659714582,0.03015,87179.0,87149.0,0.03115348]
[1763659714786,0.03015,87179.0,87142.0,0.00911]
[1763659715356,0.00061954,87180.0,87148.0,0.323]
[1763659715552,0.00061954,87180.0,87149.0,0.05210249]
[1763659715961,0.00061954,87180.0,87163.0,0.05210249]
[1763659716626,0.00061954,87180.0,87162.0,0.323]
[1763659717062,0.00061954,87180.0,87162.0,0.0323]
[1763659717271,0.00061954,87180.0,87151.0,0.37510249]
[1763659717443,0.38248,87179.0,87151.0,0.37510249]
[1763659718400,0.01558,87152.0,87133.0,0.11476708]
[1763659718598,0.01558,87152.0,87109.0,0.01347]
[1763659718599,0.004,87151.0,87109.0,0.01347]
[1763659718826,0.03415,87151.0,87092.0,0.03029]
[1763659719032,0.01,87148.0,87103.0,0.01347]
[1763659719239,0.03415,87151.0,87103.0,0.01347]
[1763659719444,0.04983975,87149.0,87103.0,0.01347]
[1763659719652,0.03015,87150.0,87107.0,0.11476708]
[1763659719855,0.03015,87150.0,87108.0,0.36915528]
[1763659720064,0.004,87151.0,87122.0,0.323]
[1763659720272,0.004,87151.0,87123.0,0.05210249]
[1763659720480,0.006,87151.0,87123.0,0.09616612]
[1763659720677,0.006,87151.0,87124.0,0.323]
[1763659720879,0.004,87151.0,87125.0,0.05210249]
[1763659721090,0.01373975,87176.0,87125.0,0.05210249]
[1763659721091,0.05778965,87178.0,87126.0,0.01377315]
[1763659721260,0.05778965,87178.0,87127.0,0.05210249]
[1763659721491,0.004,87177.0,87129.0,0.05210249]
[1763659721771,0.004,87177.0,87131.0,0.05210249]
[1763659721924,0.004,87177.0,87133.0,0.05210249]
[1763659721925,0.00910759,87176.0,87133.0,0.05210249]
[1763659722546,0.00910759,87176.0,87132.0,0.0096165]
[1763659722547,0.00025123,87175.0,87138.0,0.37510249]
[1763659722706,0.00025123,87175.0,87138.0,0.40539249]
[1763659722900,0.00025123,87175.0,87140.0,0.05210249]
[1763659723101,0.00025123,87175.0,87142.0,0.05210249]
[1763659723305,0.00025123,87175.0,87144.0,0.05210249]
[1763659723651,0.00025123,87175.0,87146.0,0.05210249]
[1763659723854,0.03015,87174.0,87142.0,0.05210249]
[1763659724188,0.00025123,87175.0,87151.0,0.11476708]
[1763659724396,0.00025123,87175.0,87153.0,0.05210249]
[1763659724592,0.00025123,87175.0,87155.0,0.05210249]
[1763659724849,0.00025123,87175.0,87157.0,0.05210249]
[1763659725059,0.00025123,87175.0,87156.0,0.03930599]
[1763659725060,0.00025123,87175.0,87159.0,0.05210249]
[1763659725270,0.00025123,87175.0,87160.0,0.04405778]
[1763659725474,0.00025123,87175.0,87160.0,0.36792126]
[1763659725678,0.00025123,87175.0,87160.0,0.35415348]
[1763659726225,0.00025123,87175.0,87160.0,0.38956883]
[1763659726638,0.00025123,87175.0,87160.0,0.06756883]
[1763659727003,0.00242731,87177.0,87160.0,0.03215348]
[1763659727133,0.00242731,87177.0,87152.0,0.323]
[1763659727134,0.03015,87176.0,87152.0,0.323]
[1763659727557,0.03015,87176.0,87149.0,0.03115348]
[1763659728556,0.00242731,87177.0,87149.0,0.03115348]
[1763659728768,0.00242731,87177.0,87150.0,0.01376936]
[1763659728995,0.00242731,87177.0,87149.0,0.03115348]
[1763659729212,0.14491708,87176.0,87149.0,0.03115348]
[1763659729449,0.14491708,87176.0,87138.0,0.00012573]
[1763659729450,0.01,87174.0,87138.0,0.00012573]
[1763659729668,0.14491708,87176.0,87138.0,0.00012573]
[1763659729669,0.11476708,87161.0,87138.0,0.00012573]
[1763659729887,0.14491708,87161.0,87138.0,0.00012573]
[1763659730091,0.03015,87171.0,87138.0,0.01389698]
[1763659730757,0.02075656,87170.0,87140.0,0.323]
[1763659730953,0.03015,87171.0,87141.0,0.01377078]
[1763659731151,0.1233,87173.0,87141.0,0.04406078]
[1763659731325,0.3669,87170.0,87154.0,0.323]
[1763659731545,0.3669,87170.0,87155.0,0.01376857]
[1763659731918,0.3669,87170.0,87154.0,0.323]
[1763659732116,0.3669,87170.0,87156.0,0.323]
[1763659732526,0.3669,87170.0,87157.0,0.01376825]
[1763659732727,0.3669,87170.0,87156.0,0.323]
[1763659733128,0.3669,87170.0,87157.0,0.01376825]
[1763659733332,0.00242731,87177.0,87158.0,0.37510249]
[1763659733526,0.00242731,87177.0,87161.0,0.05210249]
[1763659733782,0.00242731,87177.0,87160.0,0.323]
[1763659734370,0.00242731,87177.0,87161.0,0.01366231]
[1763659734574,0.00242731,87177.0,87161.0,0.04395231]
[1763659735454,0.00242731,87177.0,87160.0,0.05210249]
[1763659735727,0.00242731,87177.0,87163.0,0.41620861]
[1763659735883,0.00242731,87177.0,87166.0,0.05210249]
[1763659736366,0.0002,87180.0,87165.0,0.323]
[1763659736367,0.0002,87180.0,87172.0,0.11476708]
[1763659736500,0.0002,87180.0,87179.0,0.012]
[1763659736683,0.0002,87180.0,87173.0,0.11476708]
[1763659737166,0.00061954,87180.0,87174.0,0.03029]
[1763659737390,0.00061954,87180.0,87174.0,0.07109163]
[1763659737927,0.00061954,87180.0,87173.0,0.11476708]
[1763659738120,0.00061954,87180.0,87174.0,0.323]
[1763659738608,0.00061954,87180.0,87175.0,0.03029]
[1763659739205,0.00061954,87180.0,87174.0,0.323]
[1763659739488,0.00061954,87180.0,87173.0,0.001]
[1763659739659,0.00061954,87180.0,87174.0,0.11476708]
[1763659739847,0.00061954,87180.0,87173.0,0.001]
[1763659740046,0.00061954,87180.0,87174.0,0.001]
[1763659740047,0.3669,87179.0,87174.0,0.001]
[1763659740574,0.0510404,87169.0,87149.0,0.09206856]
[1763659740752,0.00518,87172.0,87143.0,0.06177856]
[1763659740753,0.2986404,87168.0,87143.0,0.06177856]
[1763659740954,0.0510404,87167.0,87139.0,0.14505708]
[1763659741167,0.0510404,87167.0,87137.0,0.01526]
[1763659741168,0.08443744,87167.0,87137.0,0.01526]
[1763659741528,0.0510404,87167.0,87137.0,0.01526]
[1763659741689,0.0510404,87167.0,87166.0,0.01526]
[1763659741893,0.0510404,87167.0,87160.0,0.323]
[1763659742100,0.0510404,87167.0,87162.0,0.323]
[1763659742346,0.0510404,87167.0,87163.0,0.0137673]
[1763659742537,0.0510404,87167.0,87164.0,0.03203447]
[1763659742897,0.0510404,87167.0,87165.0,0.04539699]
[1763659743119,0.0510404,87167.0,87157.0,0.06177856]
[1763659743340,0.0510404,87167.0,87137.0,0.01526]
[1763659743341,0.0510404,87167.0,87143.0,0.06177856]
[1763659743555,0.0510404,87167.0,87163.0,0.001]
[1763659743979,0.0510404,87167.0,87158.0,0.323]
[1763659744216,0.0510404,87167.0,87157.0,0.46297267]
[1763659744433,0.0510404,87167.0,87159.0,0.001]
[1763659744917,0.02896,87166.0,87159.0,0.001]
[1763659745118,0.11476708,87164.0,87159.0,0.001]
[1763659745425,0.02080744,87163.0,87159.0,0.001]
[1763659745630,0.02080744,87163.0,87115.0,0.03163]
[1763659745631,0.05210249,87161.0,87128.0,0.01454]
[1763659745847,0.0510404,87166.0,87128.0,0.01454]
[1763659745848,0.02080744,87160.0,87141.0,0.323]
[1763659746050,0.0510404,87166.0,87142.0,0.01377062]
[1763659746389,0.0510404,87166.0,87141.0,0.323]
[1763659746594,0.001,87163.0,87141.0,0.323]
[1763659746833,0.001,87163.0,87150.0,0.46297267]
[1763659747046,0.001,87163.0,87142.0,0.03163]
[1763659747244,0.0486404,87166.0,87141.0,0.323]